bitfinex/quotes_BTCUSD_20250522
["timestamp","ask_amount","ask_price","bid_price","bid_amount"]
[1747928328299,0.0389725,111190.0,111180.0,6.37521666]
[1747928329108,0.02098617,111190.0,111180.0,6.37521666]
[1747928329933,0.01199296,111190.0,111180.0,6.37521666]
[1747928330167,0.02098608,111190.0,111180.0,6.37521666]
[1747928330383,0.003,111190.0,111180.0,6.41335751]
[1747928330597,0.01199296,111190.0,111180.0,6.41335751]
[1747928330772,0.01199296,111190.0,111180.0,6.38975751]
[1747928331427,0.003,111190.0,111180.0,6.38975751]
[1747928331638,0.01199288,111190.0,111180.0,6.38975751]
[1747928331859,0.003,111190.0,111180.0,6.38975751]
[1747928332083,0.003,111190.0,111180.0,6.50180307]
[1747928332299,0.002,111210.0,111200.0,0.20683354]
[1747928332513,0.00213661,111210.0,111200.0,5.25791954]
[1747928332966,0.00213661,111210.0,111200.0,5.61246039]
[1747928333175,0.00213661,111210.0,111200.0,5.63516039]
[1747928333602,0.00213661,111210.0,111200.0,5.61246039]
[1747928333939,0.01112787,111210.0,111200.0,5.61346039]
[1747928334148,0.00213661,111210.0,111200.0,5.61346039]
[1747928334964,0.00213661,111210.0,111200.0,5.61356039]
[1747928335794,0.00213661,111210.0,111200.0,5.61556039]
[1747928335912,0.00213661,111210.0,111200.0,6.00444039]
[1747928340024,0.05056,111230.0,111220.0,0.54679635]
[1747928340207,0.05056,111230.0,111220.0,5.6123832]
[1747928340208,0.00206,111230.0,111220.0,5.6123832]
[1747928340456,0.07596482,111250.0,111240.0,0.54675917]
[1747928340667,0.04913656,111250.0,111240.0,6.36581617]
[1747928340904,0.00213656,111250.0,111240.0,6.37480517]
[1747928341319,0.00213656,111250.0,111240.0,6.47889158]
[1747928341535,0.26480689,111270.0,111260.0,0.34]
[1747928341748,0.33637921,111270.0,111260.0,0.99836]
[1747928341955,0.33637921,111270.0,111260.0,1.01151158]
[1747928342161,0.24683365,111270.0,111260.0,1.01151158]
[1747928342369,0.24683365,111270.0,111220.0,0.19081082]
[1747928342370,0.0464,111230.0,111220.0,0.19081082]
[1747928342580,0.05538989,111230.0,111220.0,6.02786424]
[1747928342783,0.07336951,111230.0,111220.0,6.37685486]
[1747928342999,0.0464,111230.0,111220.0,6.03685486]
[1747928343234,0.0464,111250.0,111240.0,0.54675925]
[1747928343444,0.27770525,111260.0,111250.0,0.52876388]
[1747928343445,0.25250206,111260.0,111250.0,0.52876388]
[1747928343655,0.08173106,111260.0,111250.0,5.70815832]
[1747928343855,0.06375555,111260.0,111250.0,5.72613487]
[1747928344068,0.26210947,111260.0,111250.0,5.71714668]
[1747928344275,0.25312217,111260.0,111250.0,5.71714668]
[1747928344711,0.06437518,111260.0,111250.0,5.73512314]
[1747928344912,0.3346801,111260.0,111250.0,1.33394404]
[1747928345125,0.32569247,111260.0,111250.0,1.14518]
[1747928345333,0.23614691,111260.0,111250.0,1.34293248]
[1747928345772,0.06537534,111260.0,111250.0,1.34293248]
[1747928346003,0.24889241,111260.0,111250.0,0.69374084]
[1747928346213,0.06913321,111260.0,111250.0,1.3699973]
[1747928346420,0.07812116,111260.0,111250.0,1.3699973]
[1747928346627,0.25788028,111260.0,111250.0,1.36100911]
[1747928347484,0.25788028,111260.0,111250.0,1.35202084]
[1747928348305,0.0511573,111260.0,111250.0,1.36100903]
[1747928348509,0.06913264,111260.0,111250.0,1.36100903]
[1747928348698,0.24889176,111260.0,111250.0,1.37110113]
[1747928349031,0.26686758,111260.0,111250.0,1.37110113]
[1747928349206,0.08710846,111260.0,111250.0,1.37110113]
[1747928349357,0.25788028,111260.0,111250.0,1.36211294]
[1747928349592,0.25788028,111260.0,111250.0,1.37110121]
[1747928350229,0.07812116,111260.0,111250.0,1.3800894]
[1747928351011,0.06014534,111260.0,111250.0,1.3800894]
[1747928351209,0.06913321,111260.0,111250.0,1.3800894]
[1747928352013,0.06913321,111260.0,111250.0,0.7218094]
[1747928352242,0.06014534,111260.0,111250.0,1.3836894]
[1747928352997,0.04217,111260.0,111250.0,1.3836894]
[1747928353211,0.06903232,111260.0,111250.0,1.3836894]
[1747928353416,0.06004461,111260.0,111250.0,1.3836894]
[1747928353655,0.06903216,111260.0,111250.0,1.3836894]
[1747928353830,0.02796216,111260.0,111250.0,1.3836894]
[1747928353971,0.00998739,111260.0,111250.0,1.3836894]
[1747928354655,0.00998739,111260.0,111250.0,1.4106454]
[1747928354857,0.001,111260.0,111250.0,1.4106454]
[1747928355989,0.001,111260.0,111250.0,1.42518625]
[1747928356363,0.03530323,111270.0,111260.0,0.20672201]
[1747928356568,0.06718989,111270.0,111260.0,4.98824801]
[1747928356782,0.06718981,111270.0,111260.0,4.98824801]
[1747928358161,0.27389347,111270.0,111260.0,4.98824817]
[1747928358414,0.08616337,111270.0,111260.0,2.95650972]
[1747928358615,0.09515043,111270.0,111260.0,2.95650972]
[1747928358821,0.08616337,111270.0,111260.0,2.95650972]
[1747928359027,0.07717663,111270.0,111260.0,2.76776273]
[1747928359233,0.07717663,111270.0,111260.0,2.95650972]
[1747928359660,0.08616361,111270.0,111260.0,2.95650972]
[1747928360648,0.08616361,111270.0,111260.0,3.29650972]
[1747928360876,0.09515067,111270.0,111260.0,3.29660972]
[1747928361444,0.27489435,111270.0,111260.0,3.29660972]
[1747928361654,0.08616425,111270.0,111260.0,3.29660972]
[1747928362115,0.07717719,111270.0,111260.0,3.29660972]
[1747928362517,0.26590721,111270.0,111260.0,3.29660972]
[1747928362683,0.07717719,111270.0,111260.0,3.29660972]
[1747928362880,0.07717719,111270.0,111260.0,2.63480972]
[1747928363083,0.25692015,111270.0,111260.0,3.08884201]
[1747928363283,0.08616425,111270.0,111260.0,3.08884201]
[1747928363492,0.05021681,111270.0,111260.0,3.08884201]
[1747928363691,0.0359434,111280.0,111270.0,0.20668892]
[1747928364066,0.21567086,111280.0,111270.0,5.9764685]
[1747928364268,0.20668517,111280.0,111270.0,5.9764685]
[1747928364468,0.19769924,111280.0,111270.0,5.96748168]
[1747928364590,0.00898617,111280.0,111270.0,5.17644266]
[1747928364858,0.03594405,111280.0,111270.0,5.1854294]
[1747928365054,0.20668452,111280.0,111270.0,5.17644266]
[1747928365301,0.21567086,111280.0,111270.0,5.1854294]
[1747928365515,0.21667086,111280.0,111270.0,5.19441606]
[1747928365913,0.21767086,111280.0,111270.0,5.19441606]
[1747928366707,0.26457086,111280.0,111270.0,5.1854294]
[1747928366987,0.26457086,111280.0,111270.0,4.67985568]
[1747928366988,0.25558517,111280.0,111270.0,4.67985568]
[1747928367205,0.25558517,111280.0,111270.0,4.69782948]
[1747928367822,0.25558517,111280.0,111270.0,4.70681622]
[1747928369094,0.25558517,111280.0,111270.0,5.09913622]
[1747928369695,0.25558517,111280.0,111270.0,5.10812288]
[1747928370136,0.06687202,111280.0,111270.0,5.10812288]
[1747928370341,0.08484445,111280.0,111270.0,5.1081224]
[1747928370754,0.07585819,111280.0,111270.0,5.1081224]
[1747928371181,0.2735576,111280.0,111270.0,5.09014916]
[1747928371358,0.26457167,111280.0,111270.0,5.09014916]
[1747928371563,0.07585852,111280.0,111270.0,5.09014916]
[1747928371767,0.25558533,111280.0,111270.0,5.09913582]
[1747928373028,0.25558533,111280.0,111270.0,5.09014916]
[1747928373229,0.25558533,111280.0,111270.0,4.85496144]
[1747928373401,0.25558533,111280.0,111270.0,5.03469006]
[1747928373974,0.25558533,111280.0,111270.0,5.02570332]
[1747928374383,0.26457167,111280.0,111270.0,5.03469006]
[1747928374593,0.25558558,111280.0,111270.0,4.76763898]
[1747928374795,0.25558558,111280.0,111270.0,4.7501094]
[1747928374988,0.25558558,111280.0,111270.0,4.75909614]
[1747928375714,0.25558558,111280.0,111270.0,4.7501094]
[1747928376812,0.25558558,111280.0,111270.0,5.07213568]
[1747928377013,0.24659941,111280.0,111270.0,5.08112258]
[1747928377413,0.24659941,111280.0,111270.0,5.0901094]
[1747928378002,0.24659941,111280.0,111270.0,5.08112258]
[1747928378232,0.24659941,111280.0,111270.0,5.0901094]
[1747928378584,0.24659941,111280.0,111270.0,4.7225094]
[1747928380483,0.23761315,111280.0,111270.0,4.70453568]
[1747928380905,0.23761315,111280.0,111270.0,4.71348266]
[1747928381197,0.23761315,111280.0,111270.0,4.71028266]
[1747928381483,0.23761315,111280.0,111270.0,4.71926956]
[1747928381698,0.22862681,111280.0,111270.0,4.70129568]
[1747928381921,0.31817237,111280.0,111270.0,0.38784]
[1747928382131,0.3703356,111280.0,111270.0,0.38784]
[1747928382334,0.31817237,111280.0,111270.0,1.04628]
[1747928383329,0.31817237,111280.0,111270.0,1.38628]
[1747928384389,0.31817237,111280.0,111270.0,1.38638]
[1747928386242,0.31817237,111280.0,111270.0,1.5751101]
[1747928386373,0.31817237,111280.0,111270.0,1.39536714]
[1747928386570,0.31817237,111280.0,111270.0,1.38638]
[1747928386776,0.31817237,111280.0,111270.0,1.56612296]
[1747928386982,0.31817237,111280.0,111270.0,1.56616296]
[1747928387645,0.31817237,111280.0,111270.0,1.57515002]
[1747928387892,0.31817237,111280.0,111270.0,1.58413692]
[1747928388066,0.31817237,111280.0,111270.0,1.57515002]
[1747928388388,0.31817237,111280.0,111270.0,1.584137]
[1747928388937,0.31817237,111280.0,111270.0,1.38642]
[1747928389139,0.31817237,111280.0,111270.0,1.5751501]
[1747928389346,0.31817237,111280.0,111270.0,1.58413716]
[1747928389521,0.32715871,111280.0,111270.0,1.59312414]
[1747928389727,0.32715871,111280.0,111270.0,1.60211104]
[1747928391122,0.0489,111280.0,111270.0,6.3926233]
[1747928391328,0.07585763,111280.0,111270.0,6.3926233]
[1747928391918,0.0848438,111280.0,111270.0,6.3926233]
[1747928392140,0.07585763,111280.0,111270.0,6.4195783]
[1747928392777,0.26457061,111280.0,111270.0,5.27389746]
[1747928392988,0.09383014,111280.0,111270.0,3.78929746]
[1747928393199,0.0848438,111280.0,111270.0,3.78929706]
[1747928393406,0.09383006,111280.0,111270.0,3.78929706]
[1747928393611,0.09383006,111280.0,111270.0,3.78929666]
[1747928393781,0.0848438,111280.0,111270.0,3.78929666]
[1747928394114,0.06687162,111280.0,111270.0,3.78929666]
[1747928394315,0.01997162,111280.0,111270.0,3.78929666]
[1747928394589,0.07505779,111280.0,111270.0,3.78929666]
[1747928394795,0.08404405,111280.0,111270.0,3.78929666]
[1747928395417,0.07505779,111280.0,111270.0,3.78929666]
[1747928395859,0.07505779,111280.0,111270.0,3.78925666]
[1747928396464,0.08404405,111280.0,111270.0,3.78925666]
[1747928396675,0.25759345,111280.0,111270.0,1.8554701]
[1747928396878,0.24579924,111280.0,111270.0,1.58409716]
[1747928397245,0.24579924,111280.0,111270.0,1.32376414]
[1747928397453,0.3353448,111280.0,111270.0,1.11706]
[1747928397660,0.32635863,111280.0,111270.0,1.38638]
[1747928398695,0.32635863,111280.0,111270.0,1.56612296]
[1747928398900,0.32635863,111280.0,111270.0,1.5751101]
[1747928399102,0.32635863,111280.0,111270.0,1.58409708]
[1747928399233,0.32635863,111280.0,111270.0,1.5751101]
[1747928399637,0.32635863,111280.0,111270.0,1.584097]
[1747928399872,0.32635863,111280.0,111270.0,1.58409716]
[1747928400449,0.32635863,111280.0,111270.0,0.92565716]
[1747928400720,0.31737237,111280.0,111270.0,0.72794]
[1747928401127,0.31737237,111280.0,111270.0,1.57511002]
[1747928401463,0.31737237,111280.0,111270.0,0.91667002]
[1747928401660,0.31737237,111280.0,111270.0,0.72794]
[1747928401888,0.3503458,111280.0,111270.0,0.77706]
[1747928402087,0.23684691,111260.0,111250.0,0.3962321]
[1747928402287,0.23684691,111260.0,111230.0,0.04744391]
[1747928402288,0.19776977,111240.0,111230.0,0.04744391]
[1747928402555,0.23075933,111240.0,111230.0,2.25845412]
[1747928402784,0.23075933,111240.0,111230.0,2.28542395]
[1747928402785,0.01797792,111240.0,111230.0,2.28542395]
[1747928403001,0.0469,111260.0,111250.0,0.19775207]
[1747928403207,0.03595051,111260.0,111250.0,5.32826692]
[1747928403415,0.20672233,111260.0,111250.0,5.34906334]
[1747928403629,0.19773478,111260.0,111250.0,5.60040638]
[1747928403855,0.22103478,111260.0,111250.0,5.6173835]
[1747928404511,0.22103478,111260.0,111250.0,5.62637186]
[1747928404933,0.24503478,111260.0,111250.0,2.71207256]
[1747928405149,0.24503478,111260.0,111250.0,1.85317256]
[1747928405366,0.24503478,111260.0,111250.0,1.85096108]
[1747928405570,0.24503478,111260.0,111250.0,1.85994944]
[1747928406524,0.24503478,111260.0,111250.0,1.85096108]
[1747928406746,0.24503478,111260.0,111250.0,1.85994944]
[1747928406995,0.25402273,111260.0,111250.0,1.86893771]
[1747928407141,0.23002273,111260.0,111250.0,1.86993771]
[1747928407345,0.20672273,111260.0,111250.0,1.86993771]
[1747928408134,0.25402273,111260.0,111250.0,1.85196108]
[1747928408346,0.25402273,111260.0,111250.0,1.86094944]
[1747928409822,0.25402273,111260.0,111250.0,1.86993763]
[1747928410031,0.25402273,111260.0,111250.0,1.82662376]
[1747928410513,0.24503494,111260.0,111250.0,1.8176354]
[1747928410760,0.24503494,111260.0,111250.0,1.80864688]
[1747928411207,0.23604707,111260.0,111250.0,1.80864688]
[1747928411642,0.22705912,111260.0,111250.0,1.80864688]
[1747928411828,0.22705912,111260.0,111250.0,1.99877432]
[1747928411955,0.22705912,111260.0,111250.0,2.18753828]
[1747928412631,0.22705912,111260.0,111250.0,1.99877432]
[1747928412835,0.22705912,111260.0,111250.0,0.39088]
[1747928412836,0.35748578,111260.0,111250.0,0.39088]
[1747928413054,0.31660468,111260.0,111250.0,0.78252]
[1747928413607,0.31660468,111260.0,111250.0,1.05088]
[1747928413741,0.31660468,111260.0,111250.0,1.04888]
[1747928414391,0.33114553,111260.0,111250.0,0.38788]
[1747928414566,0.33114553,111260.0,111250.0,1.04888]
[1747928415057,1.00730468,111260.0,111250.0,1.04888]
[1747928415258,0.31660468,111260.0,111250.0,1.04888]
[1747928416213,0.31760468,111260.0,111250.0,1.04888]
[1747928416859,0.31860468,111260.0,111250.0,1.04896]
[1747928418543,0.31860468,111260.0,111250.0,1.38896]
[1747928421447,0.31860468,111260.0,111250.0,1.11956]
[1747928421666,0.31860468,111260.0,111250.0,0.72788]
[1747928422026,0.31860468,111260.0,111250.0,1.38896]
[1747928424322,0.31860468,111260.0,111250.0,1.04906]
[1747928424947,0.31860468,111260.0,111250.0,0.77966]
[1747928425192,0.31860468,111260.0,111250.0,1.04906]
[1747928428906,0.31860468,111260.0,111250.0,1.0491]
[1747928429110,0.65860468,111260.0,111250.0,0.7797]
[1747928429323,0.65860468,111260.0,111250.0,0.38798]
[1747928429324,1.02673362,111260.0,111250.0,0.38798]
[1747928429539,0.67314553,111260.0,111250.0,0.38798]
[1747928429748,0.67214553,111260.0,111250.0,0.38798]
[1747928430155,0.67114553,111260.0,111250.0,0.38798]
[1747928430379,0.68174282,111260.0,111250.0,0.38798]
[1747928430982,0.34174282,111260.0,111250.0,0.38798]
[1747928431537,0.34374282,111260.0,111250.0,0.38798]
[1747928432115,0.33514553,111260.0,111250.0,0.38798]
[1747928432318,0.32060468,111260.0,111250.0,0.38798]
[1747928437855,0.37084033,111260.0,111250.0,0.38798]
[1747928438095,0.32060468,111260.0,111250.0,0.7797]
[1747928438323,0.32060468,111260.0,111250.0,0.38798]
[1747928440359,0.27330468,111260.0,111250.0,0.38798]
[1747928440813,0.27330468,111260.0,111250.0,0.56775528]
[1747928441030,0.27330468,111260.0,111250.0,0.75288]
[1747928441468,0.18375912,111260.0,111250.0,0.94164404]
[1747928441686,0.18375912,111260.0,111250.0,0.77588]
[1747928443209,0.18375912,111260.0,111250.0,0.72798]
[1747928443418,0.18375912,111260.0,111250.0,0.77588]
[1747928444540,0.18375912,111260.0,111250.0,0.75158]
[1747928444753,0.18375912,111260.0,111250.0,0.72798]
[1747928444754,0.27330468,111260.0,111250.0,0.72798]
[1747928446693,0.27330468,111260.0,111250.0,0.99742]
[1747928447509,0.20173454,111260.0,111250.0,1.04602]
[1747928448491,0.20173454,111260.0,111250.0,0.99742]
[1747928450554,0.004,111260.0,111250.0,5.77868744]
[1747928450773,0.004,111260.0,111250.0,6.529833]
[1747928450984,0.002,111270.0,111260.0,0.60916286]
[1747928451194,0.002,111270.0,111260.0,5.39068886]
[1747928453350,0.002,111270.0,111260.0,5.39168886]
[1747928455065,0.01997324,111270.0,111260.0,6.03866801]
[1747928455738,0.0109865,111270.0,111260.0,6.03866801]
[1747928455955,0.01997308,111270.0,111260.0,6.03866801]
[1747928456131,0.02895982,111270.0,111260.0,6.03862801]
[1747928456309,0.01997308,111270.0,111260.0,6.03862801]
[1747928456508,0.02895982,111270.0,111260.0,5.37714801]
[1747928456787,0.02895982,111270.0,111260.0,6.03862801]
[1747928456995,0.01997308,111270.0,111260.0,6.03862801]
[1747928457185,0.02895974,111270.0,111260.0,6.03862801]
[1747928457530,0.03794656,111270.0,111260.0,6.03862801]
[1747928457735,0.02895974,111270.0,111260.0,6.03862801]
[1747928457954,0.01997324,111270.0,111260.0,6.03862801]
[1747928458333,0.01997316,111270.0,111260.0,6.03862801]
[1747928459979,0.0109865,111270.0,111260.0,6.03862801]
[1747928460178,0.002,111270.0,111260.0,6.14271442]
[1747928462317,0.01997324,111270.0,111260.0,6.03862801]
[1747928462511,0.02896022,111270.0,111260.0,6.02960062]
[1747928462710,0.03794728,111270.0,111260.0,6.03858809]
[1747928463046,0.21769024,111270.0,111260.0,0.38884]
[1747928463182,0.250617,111270.0,111260.0,1.05028]
[1747928463391,0.250617,111270.0,111260.0,1.57902707]
[1747928463628,0.199717,111270.0,111260.0,1.58801486]
[1747928463836,0.199717,111270.0,111260.0,1.39926787]
[1747928464008,0.03794712,111270.0,111260.0,1.62080217]
[1747928464225,0.03794664,111270.0,111260.0,6.42652801]
[1747928464657,0.20870374,111270.0,111260.0,6.3933407]
[1747928464855,0.20870374,111270.0,111260.0,6.40232833]
[1747928465655,0.20870374,111270.0,111260.0,6.42928233]
[1747928466124,0.20870374,111270.0,111260.0,6.38750699]
[1747928466330,0.199717,111270.0,111260.0,6.38750699]
[1747928466546,0.199717,111270.0,111260.0,4.91296878]
[1747928466764,0.199717,111270.0,111260.0,4.62563312]
[1747928466976,0.199717,111270.0,111260.0,1.55674099]
[1747928467191,0.199717,111270.0,111260.0,1.87878099]
[1747928467872,0.19073002,111270.0,111260.0,1.62738]
[1747928468288,0.19073002,111270.0,111260.0,1.81612707]
[1747928468529,0.19073002,111270.0,111260.0,1.82511494]
[1747928469204,0.19073002,111270.0,111260.0,1.16367494]
[1747928469465,0.19073002,111270.0,111260.0,1.17266265]
[1747928469689,0.32897558,111270.0,111260.0,0.72884]
[1747928469894,0.32897558,111270.0,111260.0,1.39028]
[1747928470635,0.32897558,111270.0,111260.0,1.38656]
[1747928471046,0.32897558,111270.0,111260.0,0.72884]
[1747928471259,0.32897558,111270.0,111260.0,1.38656]
[1747928472454,0.32897558,111270.0,111260.0,0.72884]
[1747928472650,0.32897558,111270.0,111260.0,1.38656]
[1747928474352,0.32897558,111270.0,111260.0,1.0456]
[1747928474831,0.32897558,111270.0,111260.0,1.22535912]
[1747928475053,0.3379624,111270.0,111260.0,0.38788]
[1747928475252,0.2892624,111270.0,111260.0,1.0456]
[1747928476808,0.33631297,111270.0,111260.0,1.0456]
[1747928477153,0.33631297,111270.0,111260.0,0.38788]
[1747928477379,0.33631297,111270.0,111260.0,1.04564]
[1747928478217,0.33631297,111270.0,111250.0,0.3401]
[1747928478218,0.18874691,111260.0,111250.0,0.3401]
[1747928478383,0.32639247,111260.0,111250.0,0.72798]
[1747928478590,0.32639247,111260.0,111250.0,1.38574]
[1747928478787,0.32639247,111260.0,111250.0,0.38798]
[1747928479000,0.32639247,111260.0,111250.0,1.04574]
[1747928479198,0.32639247,111260.0,111250.0,0.38798]
[1747928479481,0.32639247,111260.0,111250.0,1.04574]
[1747928480637,0.32639247,111260.0,111250.0,0.38798]
[1747928480844,0.32639247,111260.0,111250.0,1.04574]
[1747928481500,0.32639247,111260.0,111250.0,1.04774]
[1747928481652,0.32639247,111260.0,111250.0,1.04574]
[1747928482058,0.32639247,111260.0,111250.0,1.04674]
[1747928485011,0.27829247,111260.0,111250.0,1.04674]
[1747928488644,0.32599247,111260.0,111250.0,1.04682]
[1747928489125,0.30139247,111260.0,111250.0,1.04682]
[1747928489331,0.27829247,111260.0,111250.0,1.04682]
[1747928489546,0.23169353,111270.0,111250.0,1.22659528]
[1747928489756,0.22469694,111260.0,111250.0,1.28358388]
[1747928489976,0.20672257,111260.0,111250.0,5.35708388]
[1747928490192,0.20672257,111260.0,111250.0,1.59828388]
[1747928491205,0.20672257,111260.0,111250.0,1.57468388]
[1747928491633,0.19773494,111260.0,111250.0,1.56569528]
[1747928491832,0.19773494,111260.0,111250.0,1.57468404]
[1747928492044,0.19773494,111260.0,111250.0,1.57568404]
[1747928492172,0.19773494,111260.0,111250.0,1.58367272]
[1747928492376,0.18874707,111260.0,111250.0,1.57368404]
[1747928492653,0.18874707,111260.0,111250.0,1.58267272]
[1747928492798,0.18874707,111260.0,111250.0,1.58367272]
[1747928493007,0.18874707,111260.0,111250.0,1.58467272]
[1747928493830,0.18874707,111260.0,111250.0,1.11752]
[1747928494030,0.18874707,111260.0,111250.0,1.48898404]
[1747928494459,0.18874707,111260.0,111250.0,1.01146366]
[1747928494682,0.18874707,111260.0,111250.0,0.80331894]
[1747928494871,0.18874707,111260.0,111250.0,0.82976404]
[1747928495070,0.18874707,111260.0,111250.0,0.641]
[1747928495473,0.18874707,111260.0,111250.0,0.82077528]
[1747928495680,0.18874707,111260.0,111250.0,1.09017528]
[1747928495877,0.18874707,111260.0,111250.0,1.07507528]
[1747928496114,0.18874707,111260.0,111250.0,0.17977528]
[1747928496265,0.18874707,111260.0,111250.0,0.83757528]
[1747928496448,0.18874707,111260.0,111250.0,5.64452216]
[1747928496651,0.18874707,111260.0,111250.0,5.66882224]
[1747928496962,0.18874707,111260.0,111250.0,5.65983372]
[1747928498152,0.18874707,111260.0,111250.0,5.66882232]
[1747928498529,0.18874707,111260.0,111250.0,5.64452232]
[1747928498954,0.18874707,111260.0,111250.0,2.24574132]
[1747928499159,0.21184707,111260.0,111250.0,0.85555272]
[1747928499293,0.21184707,111260.0,111250.0,1.04684132]
[1747928499498,0.21184707,111260.0,111250.0,1.01987528]
[1747928499915,0.18874707,111260.0,111250.0,1.03785272]
[1747928501551,0.18874707,111260.0,111250.0,1.02886404]
[1747928501730,0.18874707,111260.0,111250.0,0.75894404]
[1747928501910,0.22845912,111260.0,111250.0,1.22832404]
[1747928502337,0.17975912,111260.0,111250.0,5.99259372]
[1747928503399,0.17975912,111260.0,111250.0,5.00821272]
[1747928503603,0.17975912,111260.0,111250.0,2.75636]
[1747928503809,0.20305912,111260.0,111250.0,1.14466]
[1747928504010,0.22645912,111260.0,111250.0,1.14466]
[1747928504235,0.22645912,111260.0,111250.0,1.03956]
[1747928504611,0.22645912,111260.0,111250.0,0.38788]
[1747928504853,0.22645912,111260.0,111250.0,1.03956]
[1747928505315,0.22645912,111260.0,111250.0,0.38788]
[1747928505517,0.31600468,111260.0,111250.0,1.03956]
[1747928507299,0.31600468,111260.0,111250.0,0.38788]
[1747928507502,0.31600468,111260.0,111250.0,1.03956]
[1747928510987,0.29270468,111260.0,111250.0,1.03956]
[1747928511192,0.00898722,111260.0,111250.0,1.21933528]
[1747928511380,0.02696264,111260.0,111250.0,6.04918159]
[1747928511599,0.00205057,111270.0,111260.0,0.20672201]
[1747928511847,0.01103715,111270.0,111260.0,5.00960301]
[1747928511979,0.02002389,111270.0,111260.0,5.00960301]
[1747928512390,0.00205057,111270.0,111260.0,5.02414386]
[1747928512592,0.0006,111280.0,111270.0,0.27084427]
[1747928512797,0.0006,111280.0,111270.0,5.29552527]
[1747928513202,0.00958561,111280.0,111270.0,5.29552527]
[1747928513414,0.0006,111280.0,111270.0,5.29552527]
[1747928513822,0.0006,111280.0,111270.0,5.3359531]
[1747928514231,0.21627021,111280.0,111270.0,5.05401225]
[1747928514435,0.20728517,111280.0,111270.0,0.35892783]
[1747928514636,0.22369924,111280.0,111270.0,1.04352]
[1747928514880,0.24869924,111280.0,111270.0,1.04352]
[1747928515732,0.22369924,111280.0,111270.0,1.04352]
[1747928516141,0.22369924,111280.0,111270.0,0.39188]
[1747928516391,0.24789924,111280.0,111270.0,1.04348]
[1747928520766,0.24789924,111280.0,111270.0,1.23220994]
[1747928521636,0.19829924,111280.0,111270.0,1.23220994]
[1747928522789,0.23571307,111280.0,111270.0,1.22322296]
[1747928523021,0.23571307,111280.0,111270.0,1.2322101]
[1747928523244,0.32525863,111280.0,111270.0,0.39188]
[1747928523466,0.31627237,111280.0,111270.0,1.04344]
[1747928523706,0.31627237,111280.0,111270.0,0.39188]
[1747928523930,0.31627237,111280.0,111270.0,1.04344]
[1747928524382,0.31627237,111280.0,111270.0,1.22318296]
[1747928525059,0.31627237,111280.0,111270.0,1.2321701]
[1747928525279,0.31627237,111280.0,111270.0,1.24115716]
[1747928525701,0.31627237,111280.0,111270.0,1.25014414]
[1747928525945,0.26987237,111280.0,111270.0,1.2420613]
[1747928526889,0.02755795,111280.0,111270.0,1.6000347]
[1747928527194,0.02755787,111280.0,111270.0,1.6000347]
[1747928527407,0.03654404,111280.0,111270.0,1.6000347]
[1747928528660,0.0455303,111280.0,111270.0,1.6000347]
[1747928528893,0.20728533,111280.0,111270.0,1.5910482]
[1747928529166,0.20728533,111280.0,111270.0,0.94847502]
[1747928529367,0.32645863,111280.0,111270.0,1.11004]
[1747928529608,0.32645863,111280.0,111270.0,1.55914296]
[1747928529993,0.32645863,111280.0,111270.0,1.5681301]
[1747928530249,0.32645863,111280.0,111270.0,1.3794]
[1747928531169,0.32645863,111280.0,111270.0,1.37492]
[1747928532116,0.32645863,111280.0,111270.0,0.72784]
[1747928532318,0.32645863,111280.0,111270.0,1.37492]
[1747928532752,0.32645863,111280.0,111270.0,0.38784]
[1747928533187,0.32645863,111280.0,111270.0,1.03492]
[1747928533546,0.32645863,111280.0,111270.0,0.38784]
[1747928533754,0.32645863,111280.0,111270.0,0.7656]
[1747928533961,0.32645863,111280.0,111270.0,1.03492]
[1747928534318,0.32645863,111280.0,111270.0,0.38784]
[1747928534677,0.32645863,111280.0,111270.0,1.03492]
[1747928534880,0.32645863,111280.0,111270.0,1.21466296]
[1747928535132,0.32645863,111280.0,111270.0,1.2236501]
[1747928535339,0.32645863,111280.0,111270.0,1.03492]
[1747928537260,0.27885863,111280.0,111270.0,1.03492]
[1747928538491,0.27885863,111280.0,111270.0,1.2236501]
[1747928538694,0.29683098,111280.0,111270.0,1.25061072]
[1747928538897,0.29683098,111280.0,111270.0,1.23263716]
[1747928539103,0.28784497,111280.0,111270.0,1.2236501]
[1747928540839,0.0089869,111270.0,111260.0,0.55326842]
[1747928541047,0.0089869,111270.0,111260.0,0.93102842]
[1747928541249,0.0089869,111270.0,111260.0,5.68630942]
[1747928541898,0.01797388,111270.0,111260.0,6.35249697]
[1747928542120,0.0006,111280.0,111270.0,0.25580342]
[1747928542301,0.0006,111280.0,111270.0,5.01108442]
[1747928542957,0.0006,111280.0,111270.0,5.35108442]
[1747928543341,0.0006,111280.0,111270.0,5.36467821]
[1747928543568,0.0006,111280.0,111270.0,5.36567821]
[1747928544799,0.00958569,111280.0,111270.0,5.36567821]
[1747928544992,0.01857154,111280.0,111270.0,5.36567821]
[1747928545330,0.01857154,111280.0,111270.0,6.01279821]
[1747928545528,0.00958569,111280.0,111270.0,6.01379821]
[1747928545740,0.2072846,111280.0,111270.0,1.54832381]
[1747928545949,0.21627086,111280.0,111270.0,1.31359079]
[1747928546359,0.21627086,111280.0,111270.0,0.6439301]
[1747928546608,0.24449924,111280.0,111270.0,1.18679716]
[1747928546803,0.24449924,111280.0,111270.0,0.342]
[1747928546804,0.32505863,111280.0,111270.0,0.342]
[1747928547011,0.32505863,111280.0,111270.0,1.186797]
[1747928547239,0.27885863,111280.0,111270.0,1.186797]
[1747928547458,0.02755771,111280.0,111270.0,1.2047704]
[1747928547700,0.01857162,111280.0,111270.0,5.9839514]
[1747928547878,0.0006,111280.0,111270.0,5.99767942]
[1747928548109,0.00958577,111280.0,111270.0,5.99767942]
[1747928548318,0.01857178,111280.0,111270.0,5.97377942]
[1747928548521,0.00958569,111280.0,111270.0,5.97377942]
[1747928548696,0.00958569,111280.0,111270.0,5.99797942]
[1747928548992,0.01857154,111280.0,111270.0,5.99797942]
[1747928549424,0.01857154,111280.0,111270.0,5.99128076]
[1747928549977,0.00958569,111280.0,111270.0,5.99128076]
[1747928550834,0.00958569,111280.0,111270.0,5.96708076]
[1747928551547,0.01857154,111280.0,111270.0,5.96708076]
[1747928551992,0.01857154,111280.0,111270.0,5.63377942]
[1747928552242,0.2162711,111280.0,111270.0,0.62045812]
[1747928552488,0.2162711,111280.0,111270.0,1.13929826]
[1747928552489,0.03654429,111280.0,111270.0,1.13929826]
[1747928552729,0.02755795,111280.0,111270.0,1.13929826]
[1747928552968,0.02755787,111280.0,111270.0,1.13929826]
[1747928553216,0.03654404,111280.0,111270.0,1.13929826]
[1747928553456,0.25368541,111280.0,111270.0,0.84301812]
[1747928553698,0.25368541,111280.0,111270.0,1.07481168]
[1747928553906,0.25368541,111280.0,111270.0,1.06582502]
[1747928554115,0.25368541,111280.0,111270.0,1.04491184]
[1747928554337,0.25368541,111280.0,111270.0,0.97849858]